[Event "*** Titled Tuesday 3|2 Blitz"]
[Site "Chess.com"]
[Date "2016.10.04"]
[Round "5"]
[White "chessbia"]
[Black "LonesomeGeorge1"]
[Result "1/2-1/2"]
[WhiteElo "2040"]
[BlackElo "2179"]
[TimeControl "180+2"]
[EndTime "12:03:09 PDT"]
[Termination "Game drawn by repetition"]

1. d4 {[%clk 0:02:27.4]} 1... Nf6 {[%clk 0:03:00.5]} 2. c4 {[%clk 0:02:29]} 2...
g6 {[%clk 0:03:01.6]} 3. Nc3 {[%clk 0:02:30]} 3... Bg7 {[%clk 0:03:02.8]} 4. Nf3
{[%clk 0:02:28.6]} 4... O-O {[%clk 0:03:03.6]} 5. g3 {[%clk 0:02:29.5]} 5... d6
{[%clk 0:03:04.6]} 6. Bg2 {[%clk 0:02:30.6]} 6... Nbd7 {[%clk 0:03:06]} 7. O-O
{[%clk 0:02:31.5]} 7... e5 {[%clk 0:03:07.6]} 8. d5 {[%clk 0:02:32.6]} 8... a5
{[%clk 0:03:04.3]} 9. Nd2 {[%clk 0:02:33.5]} 9... Nc5 {[%clk 0:03:03.7]} 10. e4
{[%clk 0:02:32.9]} 10... Ne8 {[%clk 0:03:01.2]} 11. Qc2 {[%clk 0:02:33.7]} 11...
f5 {[%clk 0:03:01.8]} 12. b3 {[%clk 0:02:34.2]} 12... Nf6 {[%clk 0:03:00.6]} 13.
Ba3 {[%clk 0:02:31.7]} 13... f4 {[%clk 0:02:58]} 14. Bxc5 {[%clk 0:02:30.6]}
14... dxc5 {[%clk 0:02:59.5]} 15. Nf3 {[%clk 0:02:29.9]} 15... Ne8 {[%clk
0:02:59.3]} 16. Rad1 {[%clk 0:02:29.2]} 16... Nd6 {[%clk 0:02:59.7]} 17. Rfe1
{[%clk 0:02:25.6]} 17... g5 {[%clk 0:02:59.7]} 18. a4 {[%clk 0:02:23.8]} 18...
g4 {[%clk 0:02:55.1]} 19. Nd2 {[%clk 0:02:17.4]} 19... Qf6 {[%clk 0:02:26.7]}
20. Ndb1 {[%clk 0:02:09.5]} 20... h5 {[%clk 0:02:20.8]} 21. Nb5 {[%clk
0:02:07.3]} 21... Rf7 {[%clk 0:02:18.7]} 22. Nxd6 {[%clk 0:02:05.7]} 22... cxd6
{[%clk 0:02:14.7]} 23. Nc3 {[%clk 0:02:07.3]} 23... Bf8 {[%clk 0:02:15]} 24. Nb5
{[%clk 0:02:08]} 24... h4 {[%clk 0:02:13.3]} 25. gxf4 {[%clk 0:02:07.6]} 25...
Qxf4 {[%clk 0:02:12.6]} 26. Re3 {[%clk 0:02:02.1]} 26... Bd7 {[%clk 0:02:08.9]}
27. Rf1 {[%clk 0:01:50.8]} 27... Re8 {[%clk 0:01:59.9]} 28. Qe2 {[%clk 0:01:49]}
28... Bc8 {[%clk 0:01:47.9]} 29. Qd2 {[%clk 0:01:38.2]} 29... Qf6 {[%clk
0:01:41.4]} 30. Qxa5 {[%clk 0:01:36]} 30... Bh6 {[%clk 0:01:39]} 31. Rd3 {[%clk
0:01:32.5]} 31... Rg7 {[%clk 0:01:23.9]} 32. Qb6 {[%clk 0:01:31.2]} 32... h3
{[%clk 0:00:48.6]} 33. Bh1 {[%clk 0:01:29.7]} 33... Rd7 {[%clk 0:00:44.7]} 34.
Nc7 {[%clk 0:01:24.5]} 34... Rf8 {[%clk 0:00:24.8]} 35. Ne6 {[%clk 0:01:24.1]}
35... Rff7 {[%clk 0:00:26.4]} 36. Rg3 {[%clk 0:01:17.2]} 36... Qh4 {[%clk
0:00:27.4]} 37. Nxc5 {[%clk 0:00:59.7]} 37... Rde7 {[%clk 0:00:16.6]} 38. Nd3
{[%clk 0:00:45.9]} 38... Bf4 {[%clk 0:00:17]} 39. Qxd6 {[%clk 0:00:43.7]} 39...
Bxg3 {[%clk 0:00:16.6]} 40. fxg3 {[%clk 0:00:38.1]} 40... Rxf1+ {[%clk
0:00:17.8]} 41. Kxf1 {[%clk 0:00:40]} 41... Rf7+ {[%clk 0:00:19.1]} 42. Ke2
{[%clk 0:00:39.9]} 42... Qg5 {[%clk 0:00:20.5]} 43. Nxe5 {[%clk 0:00:38.5]}
43... Rf8 {[%clk 0:00:10.9]} 44. Ng6 {[%clk 0:00:25.5]} 44... Rf2+ {[%clk
0:00:05.6]} 45. Kxf2 {[%clk 0:00:22.5]} 45... Qd2+ {[%clk 0:00:07.5]} 46. Kf1
{[%clk 0:00:22.9]} 46... Qd1+ {[%clk 0:00:08.8]} 47. Kf2 {[%clk 0:00:24.2]}
47... Qd2+ {[%clk 0:00:10.2]} 48. Kf1 {[%clk 0:00:25.7]} 48... Qd1+ {[%clk
0:00:11.8]} 49. Kf2 {[%clk 0:00:27.2]} 49... Qd2+ {[%clk 0:00:13.3]} 50. Kf1
{[%clk 0:00:28.7]} 50... Qd1+ {[%clk 0:00:14.9]} 51. Kf2 {[%clk 0:00:29.8]}
51... Qd2+ {[%clk 0:00:16.5]} 52. Kf1 {[%clk 0:00:31.1]} 52... Qd1+ {[%clk
0:00:17.9]} 53. Kf2 {[%clk 0:00:32.5]} 53... Qd2+ {[%clk 0:00:19.8]} 1/2-1/2

[Event "*** Titled Tuesday 3|2 Blitz"]
[Site "Chess.com"]
[Date "2016.10.04"]
[Round "5"]
[White "Gergo85"]
[Black "andretta"]
[Result "1-0"]
[WhiteElo "2450"]
[BlackElo "2247"]
[TimeControl "180+2"]
[EndTime "12:03:24 PDT"]
[Termination "Gergo85 won on time"]

1. e4 {[%clk 0:03:01.9]} 1... c5 {[%clk 0:03:00]} 2. Nf3 {[%clk 0:03:02.5]} 2...
d6 {[%clk 0:02:58.2]} 3. d4 {[%clk 0:03:00]} 3... cxd4 {[%clk 0:03:00.1]} 4.
Qxd4 {[%clk 0:03:01.2]} 4... Nc6 {[%clk 0:02:48.3]} 5. Bb5 {[%clk 0:03:01.4]}
5... Bd7 {[%clk 0:02:47.2]} 6. Bxc6 {[%clk 0:03:02.5]} 6... Bxc6 {[%clk
0:02:45.6]} 7. Nc3 {[%clk 0:03:01.1]} 7... Nf6 {[%clk 0:02:37.6]} 8. Bg5 {[%clk
0:03:00.8]} 8... e6 {[%clk 0:02:35.1]} 9. O-O-O {[%clk 0:03:01.5]} 9... Be7
{[%clk 0:02:30.4]} 10. Qd3 {[%clk 0:03:00.8]} 10... h6 {[%clk 0:02:25.7]} 11.
Bf4 {[%clk 0:02:55.4]} 11... O-O {[%clk 0:02:22.1]} 12. Kb1 {[%clk 0:02:48]}
12... d5 {[%clk 0:02:11.7]} 13. e5 {[%clk 0:02:33.8]} 13... Ne4 {[%clk
0:01:48.3]} 14. Nxe4 {[%clk 0:02:33.4]} 14... dxe4 {[%clk 0:01:48]} 15. Qxd8
{[%clk 0:02:35.3]} 15... Rfxd8 {[%clk 0:01:44.9]} 16. Nd4 {[%clk 0:02:35.9]}
16... Ba4 {[%clk 0:01:36.3]} 17. b3 {[%clk 0:02:35.6]} 17... Be8 {[%clk
0:01:33.9]} 18. Rhe1 {[%clk 0:02:36.1]} 18... Bc5 {[%clk 0:01:21.5]} 19. Be3
{[%clk 0:02:32.9]} 19... Rd5 {[%clk 0:01:12.5]} 20. c4 {[%clk 0:01:41.7]} 20...
Rxe5 {[%clk 0:01:04.6]} 21. Bf4 {[%clk 0:01:41.6]} 21... Rh5 {[%clk 0:01:03]}
22. Rxe4 {[%clk 0:01:29.4]} 22... Rh4 {[%clk 0:01:00.2]} 23. g3 {[%clk
0:00:47.4]} 23... Rxh2 {[%clk 0:00:56.4]} 24. Be3 {[%clk 0:00:48.5]} 24... Rg2
{[%clk 0:00:51.1]} 25. Nxe6 {[%clk 0:00:31]} 25... fxe6 {[%clk 0:00:30.5]} 26.
Bxc5 {[%clk 0:00:31.3]} 26... Bg6 {[%clk 0:00:28.9]} 27. f3 {[%clk 0:00:30.3]}
27... Re2 {[%clk 0:00:26.2]} 28. Rd7 {[%clk 0:00:25.9]} 28... Bxe4+ {[%clk
0:00:25.6]} 29. fxe4 {[%clk 0:00:27.1]} 29... b6 {[%clk 0:00:16.4]} 30. Bd4
{[%clk 0:00:27.2]} 30... Rf8 {[%clk 0:00:12.8]} 31. Rxg7+ {[%clk 0:00:26.6]}
31... Kh8 {[%clk 0:00:13.8]} 32. Rxa7+ {[%clk 0:00:26.9]} 32... Kg8 {[%clk
0:00:14.5]} 33. Rg7+ {[%clk 0:00:27.8]} 33... Kh8 {[%clk 0:00:15.5]} 34. Rf7+
{[%clk 0:00:19]} 34... Kg8 {[%clk 0:00:15.8]} 35. Rxf8+ {[%clk 0:00:19.7]} 35...
Kxf8 {[%clk 0:00:16.6]} 36. Bxb6 {[%clk 0:00:21.4]} 36... Kf7 {[%clk 0:00:16.9]}
37. c5 {[%clk 0:00:22.2]} 37... e5 {[%clk 0:00:17.8]} 38. c6 {[%clk 0:00:23.1]}
38... Ke6 {[%clk 0:00:18.5]} 39. b4 {[%clk 0:00:23.6]} 39... Kd6 {[%clk
0:00:19.5]} 40. b5 {[%clk 0:00:24.5]} 40... Rxe4 {[%clk 0:00:15.7]} 41. Ba5
{[%clk 0:00:20.1]} 41... Re3 {[%clk 0:00:13.7]} 42. Kb2 {[%clk 0:00:19.2]} 42...
Rxg3 {[%clk 0:00:13.8]} 43. a4 {[%clk 0:00:20]} 43... Kc5 {[%clk 0:00:14.4]} 44.
c7 {[%clk 0:00:20.3]} 44... Rg8 {[%clk 0:00:14.4]} 45. Bc3 {[%clk 0:00:19.2]}
45... e4 {[%clk 0:00:14.4]} 46. Bf6 {[%clk 0:00:18.5]} 46... h5 {[%clk
0:00:14.2]} 47. Bd8 {[%clk 0:00:18.5]} 47... Rg2+ {[%clk 0:00:06.9]} 48. Kc1
{[%clk 0:00:16.7]} 48... Rg1+ {[%clk 0:00:05.6]} 49. Kd2 {[%clk 0:00:17.9]}
49... Rg2+ {[%clk 0:00:05]} 50. Ke3 {[%clk 0:00:17.6]} 50... Rg3+ {[%clk
0:00:05]} 51. Kxe4 {[%clk 0:00:18.3]} 51... Rg4+ {[%clk 0:00:05.5]} 52. Kf3
{[%clk 0:00:19.3]} 1-0

[Event "*** Titled Tuesday 3|2 Blitz"]
[Site "Chess.com"]
[Date "2016.10.04"]
[Round "5"]
[White "daro94"]
[Black "VMikhalevski"]
[Result "1-0"]
[WhiteElo "2652"]
[BlackElo "2476"]
[TimeControl "180+2"]
[EndTime "12:03:33 PDT"]
[Termination "daro94 won on time"]

1. e4 {[%clk 0:02:56.8]} 1... e5 {[%clk 0:03:00]} 2. Nf3 {[%clk 0:02:58.3]} 2...
Nc6 {[%clk 0:03:01.1]} 3. Bb5 {[%clk 0:02:58.8]} 3... a6 {[%clk 0:03:02]} 4. Ba4
{[%clk 0:03:00.2]} 4... Nf6 {[%clk 0:03:03.2]} 5. d3 {[%clk 0:03:00.8]} 5... b5
{[%clk 0:03:02.9]} 6. Bb3 {[%clk 0:03:02.1]} 6... Bc5 {[%clk 0:03:04.5]} 7. O-O
{[%clk 0:02:59.6]} 7... d6 {[%clk 0:03:05.1]} 8. c3 {[%clk 0:02:58.7]} 8... Bb6
{[%clk 0:02:58.2]} 9. h3 {[%clk 0:02:46.1]} 9... Ne7 {[%clk 0:02:41]} 10. a4
{[%clk 0:02:35.1]} 10... Bb7 {[%clk 0:02:37.7]} 11. Na3 {[%clk 0:02:29.2]} 11...
Qd7 {[%clk 0:02:27.9]} 12. Re1 {[%clk 0:02:03.1]} 12... Ng6 {[%clk 0:02:15.1]}
13. Nc2 {[%clk 0:01:36.3]} 13... O-O {[%clk 0:02:13.4]} 14. Ne3 {[%clk
0:01:14.3]} 14... Rad8 {[%clk 0:01:55]} 15. axb5 {[%clk 0:00:33.1]} 15... axb5
{[%clk 0:01:54.3]} 16. Nd5 {[%clk 0:00:30.7]} 16... Nxd5 {[%clk 0:01:47.4]} 17.
Bxd5 {[%clk 0:00:31.5]} 17... c6 {[%clk 0:01:26.5]} 18. Bb3 {[%clk 0:00:31.9]}
18... Rde8 {[%clk 0:01:21.2]} 19. Be3 {[%clk 0:00:17.8]} 19... Qc7 {[%clk
0:01:16.2]} 20. Qd2 {[%clk 0:00:17.6]} 20... d5 {[%clk 0:01:13.2]} 21. Bxb6
{[%clk 0:00:16.8]} 21... Qxb6 {[%clk 0:01:13.3]} 22. Qe3 {[%clk 0:00:15.6]}
22... Qxe3 {[%clk 0:01:12.5]} 23. Rxe3 {[%clk 0:00:17]} 23... dxe4 {[%clk
0:01:03.5]} 24. dxe4 {[%clk 0:00:14.8]} 24... Rd8 {[%clk 0:00:51.7]} 25. h4
{[%clk 0:00:10.7]} 25... Rfe8 {[%clk 0:00:41.1]} 26. g3 {[%clk 0:00:12]} 26...
h6 {[%clk 0:00:35.3]} 27. h5 {[%clk 0:00:12.6]} 27... Nf8 {[%clk 0:00:34.9]} 28.
Nh4 {[%clk 0:00:12.2]} 28... Rd7 {[%clk 0:00:32.7]} 29. Nf5 {[%clk 0:00:12.2]}
29... Red8 {[%clk 0:00:32.9]} 30. Kg2 {[%clk 0:00:12.9]} 30... Nh7 {[%clk
0:00:32.7]} 31. Kf3 {[%clk 0:00:05.2]} 31... c5 {[%clk 0:00:30]} 32. Bd5 {[%clk
0:00:05.9]} 32... Bxd5 {[%clk 0:00:25]} 33. exd5 {[%clk 0:00:07.8]} 33... e4+
{[%clk 0:00:26]} 34. Kg2 {[%clk 0:00:08.9]} 34... Nf6 {[%clk 0:00:26.4]} 35. d6
{[%clk 0:00:09.8]} 35... Kh7 {[%clk 0:00:24.9]} 36. Ra5 {[%clk 0:00:09.3]} 36...
Rb8 {[%clk 0:00:23.3]} 37. b4 {[%clk 0:00:07.3]} 37... cxb4 {[%clk 0:00:21.3]}
38. cxb4 {[%clk 0:00:09.2]} 38... g6 {[%clk 0:00:22.1]} 39. hxg6+ {[%clk
0:00:11.1]} 39... fxg6 {[%clk 0:00:21.8]} 40. Nd4 {[%clk 0:00:12.8]} 40... Rxd6
{[%clk 0:00:21.8]} 41. Nxb5 {[%clk 0:00:14.3]} 41... Rdb6 {[%clk 0:00:21.5]} 42.
Ra7+ {[%clk 0:00:12.1]} 42... R8b7 {[%clk 0:00:21.7]} 43. Rxb7+ {[%clk
0:00:10.9]} 43... Rxb7 {[%clk 0:00:22.8]} 44. Nd6 {[%clk 0:00:11.8]} 44... Rxb4
{[%clk 0:00:23.7]} 45. Rc3 {[%clk 0:00:13.3]} 45... g5 {[%clk 0:00:20.7]} 46.
Rc6 {[%clk 0:00:14.4]} 46... Rb8 {[%clk 0:00:12.2]} 47. Nf5 {[%clk 0:00:14.1]}
47... Rf8 {[%clk 0:00:12.6]} 48. Rc7+ {[%clk 0:00:10.7]} 48... Kg6 {[%clk
0:00:11.5]} 49. Ne7+ {[%clk 0:00:11.9]} 49... Kg7 {[%clk 0:00:06.5]} 50. Nf5+
{[%clk 0:00:12.2]} 50... Kg6 {[%clk 0:00:07.7]} 51. Ne7+ {[%clk 0:00:13.7]}
51... Kh5 {[%clk 0:00:07.7]} 52. Rc1 {[%clk 0:00:11]} 1-0

[Event "*** Titled Tuesday 3|2 Blitz"]
[Site "Chess.com"]
[Date "2016.10.04"]
[Round "5"]
[White "GMHess"]
[Black "Iuri_Shkuro"]
[Result "0-1"]
[WhiteElo "2579"]
[BlackElo "2533"]
[TimeControl "180+2"]
[EndTime "12:04:03 PDT"]
[Termination "Iuri_Shkuro won on time"]

1. c4 {[%clk 0:03:02]} 1... Nc6 {[%clk 0:02:59.1]} 2. d4 {[%clk 0:03:02.4]} 2...
e5 {[%clk 0:02:56.6]} 3. d5 {[%clk 0:02:59.8]} 3... Nce7 {[%clk 0:02:57.3]} 4.
e4 {[%clk 0:03:00.6]} 4... Ng6 {[%clk 0:02:57.4]} 5. Nc3 {[%clk 0:03:01.5]} 5...
Bc5 {[%clk 0:02:57.5]} 6. Qc2 {[%clk 0:02:49.3]} 6... Nf6 {[%clk 0:02:56.2]} 7.
f3 {[%clk 0:02:41.2]} 7... O-O {[%clk 0:02:55]} 8. Nh3 {[%clk 0:02:40.3]} 8...
a6 {[%clk 0:02:51.7]} 9. Nf2 {[%clk 0:02:40.4]} 9... c6 {[%clk 0:02:49.3]} 10.
Nd3 {[%clk 0:02:36]} 10... Bd4 {[%clk 0:02:46.9]} 11. Ne2 {[%clk 0:02:10.8]}
11... Ba7 {[%clk 0:02:45.2]} 12. Ng3 {[%clk 0:02:08]} 12... b5 {[%clk
0:02:41.4]} 13. b3 {[%clk 0:02:05.9]} 13... bxc4 {[%clk 0:02:38.1]} 14. bxc4
{[%clk 0:02:07.8]} 14... cxd5 {[%clk 0:02:35.3]} 15. cxd5 {[%clk 0:02:09.7]}
15... d6 {[%clk 0:02:35.2]} 16. Ba3 {[%clk 0:01:54.4]} 16... a5 {[%clk
0:02:21.6]} 17. Qc6 {[%clk 0:01:45.2]} 17... Bd7 {[%clk 0:02:13.4]} 18. Qb7
{[%clk 0:01:26.6]} 18... Bd4 {[%clk 0:02:06.2]} 19. Rc1 {[%clk 0:01:24.2]} 19...
Ne8 {[%clk 0:02:02.8]} 20. Qb3 {[%clk 0:00:41.1]} 20... Nh4 {[%clk 0:01:51.9]}
21. Nf2 {[%clk 0:00:28.5]} 21... Rb8 {[%clk 0:01:41.7]} 22. Qd1 {[%clk 0:00:24]}
22... Qb6 {[%clk 0:01:33.3]} 23. Qe2 {[%clk 0:00:07.3]} 23... a4 {[%clk
0:01:18.2]} 24. Nd1 {[%clk 0:00:08]} 24... Qa7 {[%clk 0:01:02.8]} 25. Qd2 {[%clk
0:00:05.6]} 25... h6 {[%clk 0:00:57.2]} 26. Bd3 {[%clk 0:00:06.6]} 26... Kh8
{[%clk 0:00:46.7]} 27. Kf1 {[%clk 0:00:07.7]} 27... Ng6 {[%clk 0:00:42.3]} 28.
Ne2 {[%clk 0:00:08.3]} 28... Bb6 {[%clk 0:00:40.7]} 29. h4 {[%clk 0:00:09.4]}
29... f5 {[%clk 0:00:39.5]} 30. exf5 {[%clk 0:00:09.5]} 30... Bxf5 {[%clk
0:00:39.9]} 31. Bxf5 {[%clk 0:00:10]} 31... Rxf5 {[%clk 0:00:40.7]} 32. Qd3
{[%clk 0:00:11.1]} 32... Ne7 {[%clk 0:00:41.3]} 33. Ng3 {[%clk 0:00:10.7]} 33...
Rf7 {[%clk 0:00:41.2]} 34. Ne4 {[%clk 0:00:11.8]} 34... Qd7 {[%clk 0:00:36.5]}
35. Ne3 {[%clk 0:00:09.1]} 35... Nf5 {[%clk 0:00:34.6]} 36. Nxf5 {[%clk
0:00:09]} 36... Rxf5 {[%clk 0:00:35.5]} 37. Rc6 {[%clk 0:00:07.5]} 37... Rf4
{[%clk 0:00:32]} 38. Ng5 {[%clk 0:00:05.5]} 38... Nf6 {[%clk 0:00:24.3]} 39.
Rxd6 {[%clk 0:00:02.7]} 39... Qb7 {[%clk 0:00:23.3]} 40. Rxf6 {[%clk 0:00:02.8]}
40... gxf6 {[%clk 0:00:23.8]} 41. Ne6 {[%clk 0:00:04.5]} 41... Ba7 {[%clk
0:00:19.3]} 42. Nxf4 {[%clk 0:00:04.9]} 42... Qb1+ {[%clk 0:00:19.5]} 43. Ke2
{[%clk 0:00:04.8]} 43... Qxa2+ {[%clk 0:00:19.1]} 44. Qd2 {[%clk 0:00:04.5]}
44... Qc4+ {[%clk 0:00:17.9]} 45. Nd3 {[%clk 0:00:05.5]} 45... e4 {[%clk
0:00:17.7]} 46. Qxh6+ {[%clk 0:00:06.1]} 46... Kg8 {[%clk 0:00:17.9]} 47. Qg6+
{[%clk 0:00:07.6]} 47... Kh8 {[%clk 0:00:18.7]} 48. Qxf6+ {[%clk 0:00:09.1]}
48... Kh7 {[%clk 0:00:19.1]} 49. Qf5+ {[%clk 0:00:08.1]} 49... Kg8 {[%clk
0:00:19.3]} 50. fxe4 {[%clk 0:00:08.1]} 50... Rb3 {[%clk 0:00:18.7]} 51. Rh3
{[%clk 0:00:08.2]} 51... Qc2+ {[%clk 0:00:18.9]} 52. Kf3 {[%clk 0:00:09.4]}
52... Rxd3+ {[%clk 0:00:18.8]} 53. Kf4 {[%clk 0:00:10.7]} 53... Qd2+ {[%clk
0:00:18.3]} 54. Ke5 {[%clk 0:00:10.5]} 54... Bd4+ {[%clk 0:00:17.3]} 55. Ke6
{[%clk 0:00:11.2]} 55... Qh6+ {[%clk 0:00:17.9]} 56. Kd7 {[%clk 0:00:09.7]}
56... Qg7+ {[%clk 0:00:18.6]} 57. Kc8 {[%clk 0:00:06.6]} 57... Rd2 {[%clk
0:00:13.8]} 58. Qg5 {[%clk 0:00:03.8]} 58... Rc2+ {[%clk 0:00:13.9]} 0-1

[Event "*** Titled Tuesday 3|2 Blitz"]
[Site "Chess.com"]
[Date "2016.10.04"]
[Round "5"]
[White "Usurpov"]
[Black "Frolyanov_D"]
[Result "1/2-1/2"]
[WhiteElo "2292"]
[BlackElo "2413"]
[TimeControl "180+2"]
[EndTime "12:04:13 PDT"]
[Termination "Game drawn - insufficient material"]

1. e4 {[%clk 0:03:01.9]} 1... e5 {[%clk 0:03:00.3]} 2. Nf3 {[%clk 0:03:01]} 2...
Nf6 {[%clk 0:03:01.1]} 3. Nc3 {[%clk 0:03:02]} 3... Nc6 {[%clk 0:03:01.5]} 4. d4
{[%clk 0:03:02.6]} 4... exd4 {[%clk 0:03:02.7]} 5. Nxd4 {[%clk 0:03:04.5]} 5...
Bb4 {[%clk 0:03:03.9]} 6. Nxc6 {[%clk 0:03:05.3]} 6... bxc6 {[%clk 0:03:05.8]}
7. Bd3 {[%clk 0:03:06.7]} 7... d5 {[%clk 0:03:06.7]} 8. exd5 {[%clk 0:03:08.6]}
8... O-O {[%clk 0:03:07.4]} 9. O-O {[%clk 0:03:09.4]} 9... cxd5 {[%clk
0:03:08.1]} 10. Qf3 {[%clk 0:03:10.5]} 10... c6 {[%clk 0:03:08.5]} 11. h3 {[%clk
0:03:09.7]} 11... Re8 {[%clk 0:03:07.8]} 12. Bf4 {[%clk 0:03:03.2]} 12... Bd6
{[%clk 0:03:06.2]} 13. Rfe1 {[%clk 0:02:56.2]} 13... Be6 {[%clk 0:03:05.9]} 14.
Ne2 {[%clk 0:02:49]} 14... Rb8 {[%clk 0:03:04.2]} 15. b3 {[%clk 0:02:49.1]}
15... Rb4 {[%clk 0:03:02.3]} 16. Bxd6 {[%clk 0:02:42.4]} 16... Qxd6 {[%clk
0:03:02.1]} 17. Qg3 {[%clk 0:02:43.3]} 17... Qxg3 {[%clk 0:02:59.4]} 18. fxg3
{[%clk 0:02:44.4]} 18... Nd7 {[%clk 0:02:51.9]} 19. c3 {[%clk 0:02:37.9]} 19...
Rbb8 {[%clk 0:02:50.4]} 20. g4 {[%clk 0:02:36.9]} 20... c5 {[%clk 0:02:48.4]}
21. Bc2 {[%clk 0:02:29.2]} 21... f6 {[%clk 0:02:44.7]} 22. Nf4 {[%clk
0:02:21.8]} 22... Bf7 {[%clk 0:02:45]} 23. Kf2 {[%clk 0:02:21.4]} 23... Ne5
{[%clk 0:02:41.4]} 24. Rad1 {[%clk 0:02:18.6]} 24... Red8 {[%clk 0:02:40.7]} 25.
Bf5 {[%clk 0:02:11]} 25... Rb6 {[%clk 0:02:34.4]} 26. c4 {[%clk 0:02:07]} 26...
d4 {[%clk 0:02:34]} 27. Nd3 {[%clk 0:02:05.6]} 27... Nxd3+ {[%clk 0:02:29.3]}
28. Bxd3 {[%clk 0:02:05.9]} 28... Kf8 {[%clk 0:02:23.8]} 29. h4 {[%clk
0:01:54.4]} 29... g6 {[%clk 0:02:24.2]} 30. Kf3 {[%clk 0:01:48.5]} 30... a5
{[%clk 0:02:24.5]} 31. Kf4 {[%clk 0:01:32.6]} 31... a4 {[%clk 0:02:25]} 32. Rb1
{[%clk 0:01:26.1]} 32... Rdb8 {[%clk 0:02:23]} 33. Bc2 {[%clk 0:01:20.6]} 33...
axb3 {[%clk 0:02:19.5]} 34. axb3 {[%clk 0:01:18.5]} 34... Ra6 {[%clk 0:02:19.5]}
35. Ra1 {[%clk 0:01:17.8]} 35... Rba8 {[%clk 0:02:20.1]} 36. Rxa6 {[%clk
0:01:12.7]} 36... Rxa6 {[%clk 0:02:22]} 37. g5 {[%clk 0:01:10.6]} 37... Ra2
{[%clk 0:02:12.2]} 38. Re2 {[%clk 0:01:05]} 38... Kg7 {[%clk 0:02:07.6]} 39.
gxf6+ {[%clk 0:00:58.8]} 39... Kxf6 {[%clk 0:02:07.4]} 40. g4 {[%clk 0:01:00.3]}
40... Be6 {[%clk 0:01:53.6]} 41. Bd3 {[%clk 0:00:47.7]} 41... Ra3 {[%clk
0:01:48.4]} 42. Rb2 {[%clk 0:00:47]} 42... Ke7 {[%clk 0:01:48]} 43. Kg5 {[%clk
0:00:44.4]} 43... Kd6 {[%clk 0:01:47.4]} 44. h5 {[%clk 0:00:43.7]} 44... gxh5
{[%clk 0:01:46.4]} 45. gxh5 {[%clk 0:00:44.8]} 45... Ra7 {[%clk 0:01:45.3]} 46.
Kh6 {[%clk 0:00:44.3]} 46... Bg4 {[%clk 0:01:42.2]} 47. Rg2 {[%clk 0:00:40.1]}
47... Bd1 {[%clk 0:01:40.9]} 48. Rd2 {[%clk 0:00:26.7]} 48... Bxb3 {[%clk
0:01:38.5]} 49. Rb2 {[%clk 0:00:24.2]} 49... Bd1 {[%clk 0:01:36.7]} 50. Rb6+
{[%clk 0:00:20.2]} 50... Ke5 {[%clk 0:01:32.3]} 51. Rc6 {[%clk 0:00:18.3]} 51...
Kf4 {[%clk 0:01:28.8]} 52. Rxc5 {[%clk 0:00:18.1]} 52... Ke3 {[%clk 0:01:29.7]}
53. Bxh7 {[%clk 0:00:18.4]} 53... d3 {[%clk 0:01:26.4]} 54. Re5+ {[%clk
0:00:15.8]} 54... Kd2 {[%clk 0:01:23.8]} 55. Rd5 {[%clk 0:00:14.5]} 55... Be2
{[%clk 0:01:24]} 56. c5 {[%clk 0:00:15.7]} 56... Ke3 {[%clk 0:01:17.7]} 57. Bxd3
{[%clk 0:00:15.3]} 57... Bxd3 {[%clk 0:01:19.6]} 58. c6 {[%clk 0:00:16.5]} 58...
Rc7 {[%clk 0:01:16.1]} 59. Rd6 {[%clk 0:00:14.2]} 59... Be4 {[%clk 0:01:16.9]}
60. Kg5 {[%clk 0:00:13.8]} 60... Bxc6 {[%clk 0:01:15.6]} 61. h6 {[%clk
0:00:14.5]} 61... Be4 {[%clk 0:01:16.5]} 62. Rf6 {[%clk 0:00:11.4]} 62... Rc5+
{[%clk 0:01:13.5]} 63. Kh4 {[%clk 0:00:11.3]} 63... Rc7 {[%clk 0:01:10.3]} 64.
Kg5 {[%clk 0:00:11]} 64... Rc1 {[%clk 0:01:02.6]} 65. Re6 {[%clk 0:00:08.4]}
65... Rg1+ {[%clk 0:01:02.7]} 66. Kf6 {[%clk 0:00:08.5]} 66... Kf4 {[%clk
0:01:02.6]} 67. Rxe4+ {[%clk 0:00:06.6]} 67... Kxe4 {[%clk 0:01:04.5]} 68. h7
{[%clk 0:00:08.1]} 68... Rh1 {[%clk 0:01:03.3]} 69. Kg7 {[%clk 0:00:09.3]} 69...
Kf5 {[%clk 0:01:04.1]} 70. h8=Q {[%clk 0:00:10]} 70... Rxh8 {[%clk 0:01:04]} 71.
Kxh8 {[%clk 0:00:11.9]} 1/2-1/2